bitfinex/quotes_ETHUSD_20220215
["timestamp","ask_amount","ask_price","bid_price","bid_amount"]
[1644897350889,34.24904404,3026.0,3025.9,0.82619]
[1644897351388,34.24904404,3026.0,3025.9,1.65227]
[1644897351587,34.24904404,3026.0,3025.8,1.66923695]
[1644897351588,34.24904404,3026.0,3025.8,1.46340695]
[1644897351795,29.13254982,3025.9,3025.7,0.34402656]
[1644897351987,1.40254982,3025.8,3025.7,0.34402656]
[1644897352247,4.15159386,3025.8,3025.7,0.34402656]
[1644897352441,4.15159386,3025.8,3025.7,2.656e-05]
[1644897352641,5.28219386,3025.8,3025.7,2.656e-05]
[1644897353442,3.87964404,3025.8,3025.7,2.656e-05]
[1644897353641,4.15164791,3025.8,3025.7,2.656e-05]
[1644897354243,2.74904404,3025.8,3025.7,2.656e-05]
[1644897363576,2.74904404,3025.8,3025.7,0.47602656]
[1644897365879,2.74904404,3025.8,3025.7,2.12830656]
[1644897366980,2.74904404,3025.8,3025.7,2.13462158]
[1644897367833,2.74904404,3025.8,3025.7,2.43462158]
[1644897368427,2.74904404,3025.8,3025.7,2.43459502]
[1644897369728,2.74904404,3025.8,3025.7,2.13459502]
[1644897370730,2.74904404,3025.8,3025.7,2.43459502]
[1644897370975,2.74904404,3025.8,3025.7,3.43459502]
[1644897372177,2.74904404,3025.8,3025.7,3.93459502]
[1644897373981,2.74904404,3025.8,3025.7,3.85441753]
[1644897374180,2.74904404,3025.8,3025.7,3.63459502]
[1644897376030,2.74904404,3025.8,3025.7,7.43459502]
[1644897376328,33.0,3026.0,3025.8,1.65187]
[1644897376529,33.0,3026.0,3025.8,2.13418502]
[1644897376727,33.0,3026.0,3025.8,3.43418502]
[1644897376927,33.0,3026.0,3025.8,4.17751992]
[1644897377527,33.0,3026.0,3025.9,0.82593]
[1644897381279,29.60225655,3026.0,3025.9,3.89234414]
[1644897381579,29.60225655,3026.0,3025.9,4.36834414]
[1644897381778,29.60225655,3026.0,3025.9,2.30193]
[1644897382235,10.76504029,3026.0,3025.9,25.29723929]
[1644897382832,5.81031029,3026.0,3025.9,25.29723929]
[1644897383535,0.85552029,3026.0,3025.9,25.29723929]
[1644897383733,0.85552029,3026.0,3025.9,25.33071829]
[1644897384533,0.85552029,3026.0,3025.9,21.83071829]
[1644897386179,0.85552029,3026.0,3025.9,2.50071829]
[1644897386378,0.85552029,3026.0,3025.9,5.64156283]
[1644897386580,0.85552029,3026.0,3025.9,5.47625354]
[1644897390331,0.85552029,3026.0,3025.9,5.64156283]
[1644897393785,0.00326563,3026.2,3025.9,5.64156283]
[1644897393985,0.00326563,3026.2,3026.1,0.82581]
[1644897394185,1.88407308,3026.3,3026.1,4.5293224]
[1644897394385,1.88407308,3026.3,3026.2,4.24156346]
[1644897394585,1.88080745,3026.3,3026.2,5.01756346]
[1644897394890,1.88080745,3026.3,3026.2,5.05104246]
[1644897395287,1.88080745,3026.3,3026.2,3.461099]
[1644897395791,1.88080745,3026.3,3026.2,6.58046101]
[1644897398029,1.88080745,3026.3,3026.2,3.461099]
[1644897401179,1.88080745,3026.3,3026.2,6.62128023]
[1644897403083,0.00326563,3026.9,3026.3,4.55]
[1644897403287,0.00326563,3026.9,3026.5,0.82575]
[1644897403484,0.00326563,3026.9,3026.6,3.71624277]
[1644897403884,0.00326563,3026.9,3026.7,1.0]
[1644897404084,0.00326563,3026.9,3026.8,0.82574]
[1644897404828,0.00326563,3026.9,3026.8,1.12574]
[1644897405026,0.00326563,3026.9,3026.8,4.33556707]
[1644897405525,0.00326563,3026.9,3026.8,5.33556707]
[1644897406125,0.00326563,3026.9,3026.8,2.159219]
[1644897406926,0.00326563,3026.9,3026.8,5.26391443]
[1644897407527,0.00326563,3026.9,3026.8,2.159219]
[1644897409780,0.00326563,3026.9,3026.8,1.859219]
[1644897409981,0.00326563,3026.9,3026.8,1.0218185]
[1644897410581,0.00326563,3026.9,3026.8,4.94086115]
[1644897411480,3.3,3026.9,3026.8,6.89235115]
[1644897414135,3.3,3026.9,3026.8,3.7990485]
[1644897414936,3.3,3026.9,3026.6,1.7065985]
[1644897415136,3.30326563,3026.9,3026.7,0.476]
[1644897415335,3.30326563,3026.9,3026.7,1.1366127]
[1644897415735,3.30326563,3026.9,3026.8,1.65149]
[1644897415975,3.3,3026.9,3026.8,1.65149]
[1644897416380,3.3,3026.9,3026.8,2.95149]
[1644897416776,3.3,3026.9,3026.8,6.04049351]
[1644897416976,3.3,3026.9,3026.8,6.86623351]
[1644897418476,3.3,3026.9,3026.8,6.89340476]
[1644897419728,3.3,3026.9,3026.8,6.59340476]
[1644897421630,3.3,3026.9,3026.8,3.59340476]
[1644897421831,3.3,3026.9,3026.8,1.47723]
[1644897422632,3.3,3026.9,3026.8,3.12872]
[1644897422832,3.3,3026.9,3026.8,6.53516329]
[1644897425784,2.34730335,3026.9,3026.8,6.53516329]
[1644897425987,2.3326,3027.7,3026.9,4.95]
[1644897426184,2.3326,3027.7,3027.1,1.65092]
[1644897426383,2.3326,3027.7,3027.2,0.476]
[1644897426587,2.3326,3027.7,3027.2,0.6411]
[1644897426787,2.3326,3027.7,3027.2,0.776]
[1644897427232,2.3326,3027.7,3027.4,0.82556]
[1644897427434,4.4834,3028.0,3027.5,2.1271]
[1644897427733,0.00605826,3027.9,3027.5,2.1271]
[1644897427934,0.00605826,3027.9,3027.5,3.1271]
[1644897428136,0.00605826,3027.9,3027.6,3.2706621]
[1644897428333,0.00605826,3027.9,3027.7,1.0]
[1644897428636,3.2492,3028.0,3027.8,0.476]
[1644897428834,1.5019,3028.1,3027.8,0.776]
[1644897429036,0.00605888,3028.0,3027.8,0.776]
[1644897429439,0.00605888,3028.0,3027.9,0.8254]
[1644897429834,3.3875,3028.6,3027.9,0.8254]
[1644897430034,3.05290675,3028.5,3027.9,0.8254]
[1644897430234,1.40169455,3028.4,3027.9,0.8254]
[1644897430638,2.22728655,3028.4,3027.9,2.47659]
[1644897430836,1.40169455,3028.3,3028.0,0.82558]
[1644897431085,3.3875,3028.6,3028.0,0.82558]
[1644897431283,1.40162043,3028.5,3028.0,0.82558]
[1644897431679,1.40162043,3028.5,3028.0,1.65111]
[1644897431881,3.3875,3028.6,3028.2,0.8255]
[1644897432087,0.50009909,3028.7,3028.2,0.8255]
[1644897432282,1.4015964,3028.6,3028.2,0.8255]
[1644897432481,0.00604764,3028.6,3028.2,0.8255]
[1644897432683,1.4016254,3028.5,3028.2,0.8255]
[1644897432881,2.2271461,3028.5,3028.2,1.65099]
[1644897433083,0.00604764,3028.6,3028.2,1.65098]
[1644897433282,0.00604764,3028.6,3028.3,0.82547]
[1644897433482,3.30604764,3028.6,3028.3,0.82547]
[1644897433683,3.3,3028.6,3028.3,0.82547]
[1644897433883,3.30604764,3028.6,3028.3,0.82547]
[1644897434594,3.30604764,3028.6,3028.3,1.65094]
[1644897434595,4.13151334,3028.6,3028.3,1.65094]
[1644897434832,4.1254657,3028.6,3028.4,0.8255]
[1644897435031,4.13151334,3028.6,3028.4,0.8255]
[1644897435632,0.02544981,3028.5,3028.4,0.8255]
[1644897439481,1.42713075,3028.5,3028.4,0.8255]
[1644897440182,1.40168094,3028.5,3028.4,0.8255]
[1644897441782,4.28387311,3028.6,3028.4,0.8255]
[1644897441783,3.30604764,3028.6,3028.4,0.8255]
[1644897441984,3.303361,3028.6,3028.4,1.65098]
[1644897442241,3.30940864,3028.6,3028.4,1.65098]
[1644897443142,3.303361,3028.6,3028.4,1.65098]
[1644897443342,3.303361,3028.6,3028.5,0.82548]
[1644897443543,3.3,3028.6,3028.5,0.82548]
[1644897450637,3.29876514,3028.6,3028.5,0.82548]
[1644897451639,3.29876514,3028.6,3028.5,1.30148]
[1644897452040,3.29876514,3028.6,3028.5,4.44724486]
[1644897452238,3.29876514,3028.6,3028.5,1.30148]
[1644897454796,3.29876514,3028.6,3028.5,1.60148]
[1644897458135,3.29876514,3028.6,3028.5,1.30148]
[1644897460439,3.29876514,3028.6,3028.5,1.60148]
[1644897461491,3.29876514,3028.6,3028.5,2.60148]
[1644897468032,3.29876514,3028.6,3028.5,6.10148]
[1644897468236,3.29876514,3028.6,3028.5,2.60148]
[1644897468885,6.84789615,3028.6,3028.5,0.82548]
[1644897469085,6.84789615,3028.6,3027.9,0.165]
[1644897469086,3.29876514,3028.6,3027.9,0.165]
[1644897469285,3.30212614,3028.6,3027.9,0.165]
[1644897469486,1.40162691,3028.5,3027.9,0.165]
[1644897469683,0.003361,3028.4,3027.9,0.165]
[1644897469883,0.83505924,3028.4,3027.9,0.165]
[1644897470084,0.00940864,3028.4,3027.9,0.165]
[1644897470785,1.40164172,3028.3,3027.9,0.165]
[1644897470983,1.40164172,3028.3,3028.0,0.82568]
[1644897470984,0.003361,3028.2,3028.0,0.82568]
[1644897471288,0.8256628,3028.2,3028.0,0.82568]
[1644897472939,0.00940864,3028.3,3028.0,0.82568]
[1644897473233,1.40166926,3028.2,3028.0,0.82568]
[1644897474437,0.8290048,3028.3,3028.0,0.82568]
[1644897474638,1.40166666,3028.2,3028.0,0.82568]
[1644897475836,0.00940864,3028.3,3028.0,0.82568]
[1644897476081,1.40167532,3028.2,3028.0,0.82568]
[1644897476882,0.003361,3028.3,3028.0,0.82568]
[1644897477083,0.00940864,3028.3,3028.0,0.82568]
[1644897477682,1.40167075,3028.2,3028.0,0.82568]
[1644897478086,0.003361,3028.3,3028.0,0.82568]
[1644897478283,0.00940864,3028.3,3028.0,0.82568]
[1644897478483,0.00604764,3028.3,3028.0,0.82568]
[1644897478684,0.00604764,3028.3,3028.0,1.65133]
[1644897478685,0.00940864,3028.3,3028.0,1.65133]
[1644897478886,0.00604764,3028.3,3028.1,0.82562]
[1644897479192,0.003361,3028.5,3028.1,0.82562]
[1644897479385,0.00604764,3028.3,3028.1,0.82562]
[1644897479754,1.40167743,3028.2,3028.1,0.82562]
[1644897479955,1.40503843,3028.2,3028.1,0.82562]
[1644897480754,0.003361,3028.2,3028.1,0.82562]
[1644897480955,0.00604764,3028.3,3028.1,0.82562]
[1644897481558,3.38320568,3028.4,3028.1,0.82562]
[1644897481761,1.40166002,3028.3,3028.1,0.82562]
[1644897481958,1.40166002,3028.2,3028.1,0.82562]
[1644897482159,1.40502102,3028.3,3028.1,0.82562]
[1644897482962,0.003361,3028.3,3028.1,0.82562]
[1644897483161,0.86035127,3028.4,3028.1,0.82562]
[1644897483362,1.40503851,3028.3,3028.1,0.82562]
[1644897483994,3.3,3028.2,3027.4,0.25]
[1644897484190,3.3,3028.2,3027.3,0.1651]
[1644897484191,1.40167751,3028.1,3027.3,0.1651]
[1644897485191,1.40167751,3028.1,3027.7,0.82576]
[1644897485391,0.00604752,3027.9,3027.7,1.65147]
[1644897485590,0.00604752,3027.9,3027.7,0.82571]
[1644897486390,3.53759087,3028.2,3027.7,0.82571]
[1644897486591,0.00604764,3028.0,3027.7,0.82571]
[1644897486996,0.00604764,3028.0,3027.8,0.82572]
[1644897487434,0.00604764,3028.0,3027.6,0.82576]
[1644897487634,8.92423752,3028.3,3027.6,0.82576]
[1644897487834,0.00604764,3028.1,3027.6,0.82576]
[1644897488034,1.40166478,3028.0,3027.7,0.82577]
[1644897488234,0.00604764,3028.1,3027.7,0.82577]
[1644897488436,0.00604764,3028.1,3027.7,0.82568]
[1644897488635,1.40167608,3028.0,3027.7,0.82568]
[1644897489136,0.00604764,3028.1,3027.8,0.82572]
[1644897489336,0.00604764,3028.1,3027.7,0.82568]
[1644897489337,2.47176016,3028.0,3027.4,1.65156]
[1644897489539,1.07007164,3028.0,3027.4,1.65156]
[1644897489735,3.41053339,3027.9,3027.2,1.81666]
[1644897489938,1.40178623,3027.8,3026.9,1.2108]
[1644897490136,1.07007164,3028.0,3027.5,0.82584]
[1644897490338,4.6682,3028.2,3027.6,0.82572]
[1644897490339,1.1682,3028.2,3027.6,0.82572]
[1644897490538,1.40165918,3028.1,3027.6,0.82572]
[1644897491391,0.00603642,3028.0,3027.6,0.82572]
[1644897491991,0.00603642,3028.0,3027.7,0.82575]
[1644897492195,0.83178582,3028.0,3027.7,0.82575]
[1644897492491,0.8257494,3028.0,3027.7,0.82575]
[1644897492693,0.83178582,3028.0,3027.7,0.82575]
[1644897493099,3.55623543,3027.9,3027.7,0.82575]
[1644897493293,0.00603642,3028.0,3027.7,0.82575]
[1644897493494,0.00603642,3028.0,3027.8,0.82571]
[1644897493693,4.41876063,3028.1,3027.8,0.82571]
[1644897493895,0.00603642,3028.0,3027.8,0.82571]
[1644897494738,4.41876063,3028.1,3027.8,0.82571]
[1644897494938,1.40171772,3028.0,3027.8,0.82571]
[1644897495534,4.42479705,3028.1,3027.8,0.82571]
[1644897495735,1.40169644,3028.0,3027.8,0.82571]
[1644897496338,4.42479705,3028.1,3027.8,0.82571]
[1644897497241,4.41876063,3028.1,3027.8,0.82571]
[1644897497437,4.42479705,3028.1,3027.8,0.82571]
[1644897497638,4.42479705,3028.1,3027.8,1.6514]
[1644897497837,4.42479705,3028.1,3027.9,0.82569]
[1644897498037,0.94332915,3028.1,3027.9,0.82569]
[1644897498486,0.93729273,3028.1,3027.9,0.82569]
[1644897500891,7.178861,3028.3,3027.9,0.82569]
[1644897501095,1.40161956,3028.2,3027.9,0.82569]
[1644897501990,3.3,3028.1,3027.9,0.82569]
[1644897503844,4.1256855,3028.1,3027.9,0.82569]
[1644897507085,1.40163852,3028.0,3027.9,0.82569]
[1644897508584,1.40163852,3028.0,3027.8,0.82571]
[1644897508785,2.22734642,3028.0,3027.8,0.82571]
[1644897508986,0.8257079,3028.0,3027.8,0.82571]
[1644897509186,3.3,3028.1,3027.8,0.82571]
[1644897509387,3.30602615,3028.1,3027.8,0.82571]
[1644897510036,3.30602615,3028.1,3027.8,1.65139]
[1644897510240,3.30602615,3028.1,3027.9,0.82567]
[1644897510436,3.3,3028.1,3027.9,0.82567]
[1644897510636,3.30602615,3028.1,3027.9,0.82567]
[1644897510838,1.40160583,3028.0,3027.9,0.82567]
[1644897511441,4.13169495,3028.1,3027.9,0.82567]
[1644897511442,3.30602615,3028.1,3027.9,0.82567]
[1644897511640,3.3,3028.1,3027.9,1.30167]
[1644897511840,3.3,3028.1,3027.9,2.42721]
[1644897512140,3.3,3028.1,3028.0,0.82554]
[1644897513893,3.3,3028.1,3028.0,1.12554]
[1644897519839,3.3,3028.1,3028.0,0.82554]
[1644897523689,4.32422882,3028.1,3028.0,0.82554]
[1644897525537,3.3,3028.1,3028.0,0.82554]
[1644897525745,3.3,3028.1,3028.0,4.07561778]
[1644897525939,3.3,3028.1,3028.0,4.55161778]
[1644897526137,3.3,3028.1,3028.0,1.30154]
[1644897526740,3.3,3028.1,3028.0,4.7222437]
[1644897527339,3.3,3028.1,3028.0,1.60154]
[1644897528586,3.29912751,3028.1,3028.0,1.60154]
[1644897531990,3.29912751,3028.1,3028.0,2.60154]
[1644897533647,3.29912751,3028.1,3028.0,5.75282361]
[1644897533841,3.29912751,3028.1,3028.0,5.74221732]
[1644897536491,3.29912751,3028.1,3028.0,2.60154]
[1644897536689,3.29912751,3028.1,3028.0,5.73028812]
[1644897538794,3.29912751,3028.1,3028.0,4.43028812]
[1644897538992,3.29912751,3028.1,3028.0,0.82554]
[1644897540339,3.29912751,3028.1,3028.0,1.12554]
[1644897542842,3.29912751,3028.1,3028.0,0.82554]
[1644897550990,3.29755432,3028.1,3028.0,0.82554]
[1644897551800,3.29755432,3028.1,3028.0,1.12554]
[1644897553592,3.29755432,3028.1,3028.0,0.82554]
[1644897553996,4.69911332,3028.1,3027.4,2.47664]
[1644897554193,3.29755432,3028.1,3027.4,2.47664]
[1644897554398,1.40160952,3028.0,3027.4,2.47664]
[1644897554594,3.29755432,3028.1,3027.4,2.47664]
[1644897554839,1.1771372,3027.9,3027.4,2.47664]
[1644897555040,1.1771372,3027.9,3027.6,0.8258]
[1644897555240,2.00890943,3027.9,3027.7,0.82575]
[1644897555442,0.83177223,3027.9,3027.7,0.82575]
[1644897555640,0.00602613,3027.9,3027.7,0.82575]
[1644897556040,3.25358045,3028.1,3027.7,0.82575]
[1644897556440,0.00602615,3028.0,3027.7,1.65145]
[1644897556642,0.00602615,3028.0,3027.8,0.82567]
[1644897557443,3.25358045,3028.1,3027.8,1.65131]
[1644897557642,3.25358045,3028.1,3027.9,0.82566]
[1644897558692,3.25358045,3028.1,3027.9,1.65132]
[1644897558892,3.25358045,3028.1,3028.0,0.82567]
[1644897559094,4.65514612,3028.1,3028.0,0.82567]
[1644897560093,3.25358045,3028.1,3028.0,0.82567]
[1644897563745,4.65517482,3028.1,3028.0,0.82567]
[1644897563945,3.25358045,3028.1,3028.0,0.82567]
[1644897564950,3.25358045,3028.1,3028.0,0.82443818]
[1644897566497,3.25358045,3028.1,3027.3,0.1651]
[1644897566498,20.82523668,3027.9,3027.3,0.1651]
[1644897566701,20.73178439,3027.8,3026.9,0.0104267]
[1644897566895,0.8261138,3027.3,3026.8,0.0063596]
[1644897567398,0.8261138,3027.3,3026.9,0.01042643]
[1644897568297,0.8261138,3027.3,3026.6,3.30366]
[1644897568499,0.8261138,3027.3,3026.9,0.01042613]
[1644897568697,4.24103653,3027.3,3026.9,0.01042613]
[1644897569497,4.24103653,3027.3,3026.6,0.0063596]
[1644897569777,4.24103653,3027.3,3026.9,0.01042613]
[1644897569980,0.8261138,3027.3,3026.9,0.01678573]
[1644897570577,0.8261138,3027.3,3026.9,0.0063596]
[1644897570778,0.8261138,3027.3,3026.9,0.01678573]
[1644897570979,4.1261138,3027.3,3026.9,0.01678573]
[1644897571777,4.1261138,3027.3,3026.9,0.0063596]
[1644897571977,3.35977564,3027.2,3026.9,0.01678573]
[1644897572177,5.83542024,3027.2,3026.9,0.01042613]
[1644897572380,0.64133407,3027.1,3026.9,0.01042613]
[1644897572582,3.51529126,3027.0,3026.9,0.01042613]
[1644897572979,3.51529126,3027.0,3026.2,0.0063596]
[1644897573178,0.98643799,3026.6,3026.3,0.86784248]
[1644897573378,0.8260975,3026.7,3026.3,0.86784248]
[1644897573589,0.8260975,3026.7,3026.3,0.87420208]
[1644897574190,0.8260975,3026.7,3026.3,0.8324896]
[1644897574390,0.8260975,3026.7,3026.3,0.84291744]
[1644897574589,0.8260975,3026.7,3026.3,1.66902744]
[1644897574889,4.26936861,3026.7,3026.3,1.66902744]
[1644897575093,4.26936861,3026.7,3026.3,0.84291744]
[1644897575290,4.26936861,3026.7,3026.3,0.8324896]
[1644897575691,4.26936861,3026.7,3026.3,0.84291744]
[1644897575894,0.8260975,3026.7,3026.3,0.84291744]
[1644897576493,4.17716705,3026.7,3026.3,1.6585996]
[1644897576691,4.17716705,3026.7,3026.3,0.8324896]
[1644897576891,4.17716705,3026.7,3026.3,0.84291744]
[1644897577092,4.17716705,3026.7,3026.3,0.01678744]
[1644897577538,4.17716705,3026.7,3026.3,0.01042784]
[1644897577745,4.17716705,3026.7,3026.3,0.0063596]
[1644897577944,4.17716705,3026.7,3026.3,0.01678744]
[1644897578341,4.17716705,3026.7,3026.3,0.84291744]
[1644897578541,4.17716705,3026.7,3026.3,0.83655784]
[1644897578742,4.17716705,3026.7,3026.4,0.0063596]
[1644897580141,0.8260975,3026.7,3026.4,0.0063596]
[1644897580354,0.8260975,3026.7,3026.4,0.84289729]
[1644897580545,7.29333407,3027.1,3026.4,0.84289729]
[1644897580991,7.29333407,3027.1,3026.4,1.66886729]
[1644897581193,7.29333407,3027.1,3026.4,0.84289729]
[1644897581492,1.83519788,3027.0,3026.5,1.65193]
[1644897581692,1.83519788,3027.0,3026.6,0.84282672]
[1644897581893,1.83519788,3027.0,3026.7,0.0063596]
[1644897582293,2.55,3026.9,3026.3,0.82612]
[1644897582697,2.55,3026.9,3026.2,1.65215]
[1644897582698,3.3760699,3026.9,3026.2,1.65215]
[1644897583094,0.8260699,3026.9,3026.2,1.65215]
[1644897583694,0.8260699,3026.9,3026.3,0.82611]
[1644897583895,0.8260699,3026.9,3026.4,0.8261]
[1644897585548,0.8260699,3026.9,3026.5,0.82606]
[1644897585747,0.8260699,3026.9,3026.5,1.65213]
[1644897585944,7.74847322,3027.0,3026.5,1.65213]
[1644897585945,4.31095321,3027.0,3026.5,1.65213]
[1644897586246,3.3,3027.0,3026.5,0.82606]
[1644897586445,3.30537735,3027.0,3026.5,0.82606]
[1644897587045,3.30537735,3027.0,3026.6,0.826]
[1644897587248,3.30537735,3027.0,3026.6,1.65204]
[1644897587449,3.3,3027.0,3026.6,0.82604]
[1644897587648,3.30537753,3027.0,3026.6,0.82604]
[1644897587849,4.13139523,3027.0,3026.6,0.82604]
[1644897588349,0.93990319,3026.9,3026.5,0.82609]
[1644897588792,4.40367071,3026.9,3026.5,0.82609]
[1644897589092,0.93990319,3026.9,3026.5,0.82609]
[1644897589491,0.93990319,3026.9,3026.6,0.82605]
[1644897589492,1.76596909,3026.9,3026.6,0.82605]
[1644897589694,1.76596909,3026.9,3026.6,1.6521]
[1644897590493,4.13139045,3027.0,3026.7,0.82602]
[1644897590698,3.30537735,3027.0,3026.7,1.65199]
[1644897590894,3.3,3027.0,3026.7,0.82597]
[1644897591295,3.30498167,3027.0,3026.7,0.82597]
[1644897591493,4.13097837,3027.0,3026.7,0.82597]
[1644897591694,4.13097837,3027.0,3026.7,1.65199]
[1644897592096,4.1259967,3027.0,3026.7,1.65199]
[1644897592342,4.13097837,3027.0,3026.7,1.65199]
[1644897592944,3.30498167,3027.0,3026.8,0.82597]
[1644897593345,3.3,3027.0,3026.7,0.82597]
[1644897593942,4.16574928,3027.0,3026.7,1.65199]
[1644897594142,4.16574928,3027.0,3026.7,0.82597]
[1644897594743,3.53769319,3026.9,3026.4,0.01013487]
[1644897595143,4.17081051,3027.0,3026.5,0.82608]
[1644897595742,0.8260272,3026.9,3026.5,1.65216]
[1644897596192,0.8260272,3026.9,3026.6,0.82601]
[1644897596494,3.30506106,3027.0,3026.6,0.82601]
[1644897596693,3.30506106,3027.0,3026.6,1.65194]
[1644897596891,3.3,3027.0,3026.6,1.65194]
[1644897597292,3.30506115,3027.0,3026.6,1.65194]
[1644897597492,3.30506115,3027.0,3026.7,0.82592]
[1644897597892,3.30506115,3027.0,3026.7,0.83222002]
[1644897598192,3.3,3027.0,3026.7,0.83222002]
[1644897598597,3.30504604,3027.0,3026.7,0.83222002]
[1644897599092,3.30504604,3027.0,3026.8,0.82598]
[1644897599293,3.30504604,3027.0,3026.8,0.83228002]
[1644897599494,3.3,3027.0,3026.8,0.83228002]
[1644897600352,3.3,3027.0,3026.9,0.82594]
[1644897601554,3.3,3027.0,3026.9,4.02979029]
[1644897601754,3.3,3027.0,3026.9,1.30194]
[1644897602150,3.3,3027.0,3026.9,2.44855157]
[1644897602551,1.49523668,3027.9,3027.0,3.2]
[1644897602752,1.49523668,3027.9,3027.2,0.82571]
[1644897602953,1.49523668,3027.9,3027.2,2.19631]
[1644897603150,1.49523668,3027.9,3027.2,1.6706]
[1644897603350,1.49523668,3027.9,3027.4,0.82569]
[1644897603596,1.49523668,3027.9,3027.2,1.3706]
[1644897603800,1.49523668,3027.9,3027.6,1.14661157]
[1644897603998,1.49523668,3027.9,3027.5,0.82575]
[1644897604397,0.62740342,3027.9,3027.5,1.65143]
[1644897604598,4.24623748,3028.4,3027.6,3.976]
[1644897604803,0.003361,3028.6,3027.8,10.897]
[1644897604997,0.003361,3028.6,3027.9,5.62634]
[1644897605196,2.2092,3029.3,3028.2,1.14661157]
[1644897605197,1.40458316,3029.2,3028.2,1.14661157]
[1644897605397,3.3,3028.4,3028.3,0.476]
[1644897605803,0.02409452,3028.9,3028.3,3.0441428]
[1644897606000,0.02409452,3028.9,3028.4,5.15034]
[1644897606202,0.02409452,3028.9,3028.5,0.476]
[1644897606505,0.02409452,3028.9,3028.6,1.65026]
[1644897606703,0.003361,3029.2,3028.6,1.65026]
[1644897606704,0.003361,3029.2,3028.7,0.476]
[1644897607001,1.40445687,3029.4,3028.8,1.65054]
[1644897607247,1.40445687,3029.4,3028.9,0.476]
[1644897607448,1.40445687,3029.4,3028.9,2.12649]
[1644897608348,1.40445687,3029.4,3029.2,1.97189157]
[1644897608548,1.40445687,3029.4,3029.2,0.82528]
[1644897608948,1.40109587,3029.3,3029.2,0.82528]
[1644897609352,3.01991443,3029.3,3029.1,0.63196418]
[1644897609551,1.62217956,3029.3,3029.1,0.15596418]
[1644897610050,1.62217956,3029.3,3029.2,1.14661157]
[1644897610250,1.61881856,3029.3,3029.2,1.14661157]
[1644897610652,1.61881856,3029.3,3029.2,2.75949157]
[1644897611799,1.61881856,3029.3,3029.2,1.93421157]
[1644897611994,1.61881856,3029.3,3029.2,1.14661157]
[1644897614847,1.64462124,3029.3,3029.2,1.14661157]
[1644897615846,1.64462124,3029.3,3029.2,1.09661157]
[1644897616047,4.94462124,3029.3,3028.6,1.65068]
[1644897616252,0.003361,3029.2,3028.6,1.65068]
[1644897616648,1.61881856,3028.9,3028.6,1.65068]
[1644897616848,1.62217956,3028.9,3028.7,0.82541]
[1644897617450,1.62217956,3028.9,3028.7,1.65074]
[1644897617851,1.62217956,3028.9,3028.8,1.04661157]
[1644897618050,1.61881856,3028.9,3028.8,1.04661157]
[1644897618898,1.61881856,3028.9,3028.8,1.04299612]
[1644897619101,1.61881856,3028.9,3028.7,1.65074]
[1644897619301,1.62217956,3028.9,3028.8,1.04299612]
[1644897619502,1.61881856,3028.9,3028.8,1.04299612]
[1644897624743,1.64446003,3028.9,3028.8,1.04299612]
[1644897631552,1.64446003,3028.9,3028.8,4.15549612]
[1644897631753,1.64446003,3028.9,3028.8,4.45549612]
[1644897633497,1.64446003,3028.9,3028.8,4.93149612]
[1644897635403,1.64446003,3028.9,3028.8,5.93149612]
[1644897637545,1.64446003,3028.9,3028.8,2.81899612]
[1644897637752,1.64446003,3028.9,3028.8,5.98334727]
[1644897641096,0.00599828,3029.0,3028.9,4.95]
[1644897641297,0.00599828,3029.0,3028.9,11.5254883]
[1644897641499,0.003361,3029.2,3028.9,18.51548442]
[1644897641700,0.003361,3029.2,3029.1,5.947]
[1644897641898,3.3,3029.3,3029.1,5.947]
[1644897641899,3.303361,3029.3,3029.1,11.15891733]
[1644897642097,3.303361,3029.3,3029.2,3.5738372]
[1644897642296,3.3,3029.3,3029.2,5.3498372]
[1644897642496,3.3,3029.3,3029.2,5.51514649]
[1644897643098,3.3,3029.3,3029.2,6.55814261]
[1644897644743,3.3,3029.3,3029.2,6.39283332]
[1644897646347,3.3,3029.3,3029.2,2.81899612]
[1644897646545,3.3,3029.3,3029.2,5.98946366]
[1644897646748,3.3,3029.3,3029.2,2.81899612]
[1644897647549,3.3,3029.3,3029.2,4.46935612]
[1644897648599,3.3,3029.3,3029.2,3.46935612]
[1644897648795,3.3,3029.3,3029.2,4.46935612]
[1644897649796,3.3,3029.3,3029.2,3.16935612]
[1644897650300,3.3,3029.3,3029.2,3.46935612]
[1644897650897,3.3,3029.3,3029.2,4.46935612]
[1644897655547,3.09669514,3029.3,3029.2,4.46935612]
[1644897656205,3.09669514,3029.3,3029.2,3.33466541]
[1644897656411,3.09669514,3029.3,3029.2,2.85866541]
[1644897656707,3.09669514,3029.3,3029.2,1.04299612]
[1644897658004,3.09669514,3029.3,3029.2,2.34299612]
[1644897659007,3.09669514,3029.3,3029.2,1.04299612]
[1644897660047,3.09669514,3029.3,3029.2,1.34299612]
[1644897660248,3.09669514,3029.3,3029.2,2.34299612]
[1644897660548,3.09669514,3029.3,3029.2,1.34299612]
[1644897660946,3.09669514,3029.3,3029.2,1.04299612]
[1644897661555,3.09669514,3029.3,3029.2,1.34299612]
[1644897661747,3.09669514,3029.3,3029.2,2.34299612]
[1644897664402,3.09669514,3029.3,3029.2,9.34299612]
[1644897664602,3.09669514,3029.3,3029.2,2.34299612]
[1644897667447,3.09669514,3029.3,3029.2,2.81899612]
[1644897668049,0.003361,3029.6,3029.2,6.31899612]
[1644897668252,0.003361,3029.6,3029.5,5.947]
[1644897668455,0.993361,3029.7,3029.5,7.0899]
[1644897668650,0.993361,3029.7,3029.6,5.947]
[1644897668850,0.993361,3029.7,3029.6,7.423]
[1644897669850,0.993361,3029.7,3029.6,10.15156487]
[1644897670451,0.993361,3029.7,3029.6,13.62494674]
[1644897672207,0.993361,3029.7,3029.6,10.15156487]
[1644897672407,0.993361,3029.7,3029.6,13.35063328]
[1644897673006,4.293361,3029.7,3029.6,13.35063328]
[1644897674207,4.275361,3029.7,3029.6,13.35063328]
[1644897677752,4.275361,3029.7,3029.6,13.51594257]
[1644897679505,0.12662181,3029.7,3029.6,13.51594257]
[1644897679706,0.00590976,3029.8,3029.7,3.43661935]
[1644897679900,0.00337597,3030.3,3029.7,9.34999694]
[1644897680100,0.00337597,3030.3,3030.2,0.86062875]
[1644897680302,0.02701145,3030.3,3030.2,5.82666632]
[1644897680499,0.02701145,3030.3,3030.2,3.43342875]